bitfinex-derivatives/quotes_SOLF0:USTF0_20240815
["timestamp","ask_amount","ask_price","bid_price","bid_amount"]
[1723717000210,3.5707523,142.11,142.08,3.56866191]
[1723717001719,3.5181,142.1,142.08,3.56866191]
[1723717003619,3.5707523,142.11,142.08,3.56866191]
[1723717004720,3.5707523,142.11,142.09,3.5183]
[1723717005723,3.5707523,142.11,142.08,3.56866191]
[1723717006312,3.5181,142.1,142.08,3.56866191]
[1723717007018,3.5181,142.1,142.08,0.05026191]
[1723717007221,3.5183,142.09,142.08,0.05026191]
[1723717008122,3.5182,142.1,142.08,0.05026191]
[1723717010926,3.5708523,142.11,142.08,0.05026191]
[1723717011125,0.0528523,142.11,142.09,33.8]
[1723717011328,0.0528523,142.11,142.09,37.3181]
[1723717013229,3.5707523,142.11,142.08,0.05026191]
[1723717014522,3.5181,142.1,142.08,0.05026191]
[1723717015820,3.5707523,142.11,142.08,3.56866191]
[1723717016823,4.28,142.18,142.1,33.8]
[1723717017026,4.28,142.18,142.12,33.8]
[1723717017823,3.517,142.15,142.12,33.8]
[1723717018128,3.517,142.15,142.14,0.04816526]
[1723717020529,33.84448015,142.16,141.98,10.61598925]
[1723717020735,33.8,142.14,142.04,33.8]
[1723717021033,3.5187,142.08,142.04,37.3194]
[1723717021230,3.59007023,142.11,142.04,3.5194]
[1723717021528,38.08,142.12,142.02,33.8]
[1723717021732,38.08,142.12,142.03,3.5196]
[1723717021934,0.05018722,142.09,142.06,0.0463857]
[1723717022528,3.519,142.07,142.06,0.0463857]
[1723717031237,35.1192,142.08,142.0,33.8]
[1723717031441,39.3992,142.08,142.0,33.8]
[1723717031639,1.3189,142.07,142.0,33.8]
[1723717031942,3.5193,142.05,142.01,3.5201]
[1723717032143,3.5193,142.05,142.0,33.8]
[1723717032338,0.05091163,142.04,142.02,0.05152061]
[1723717032542,0.05091163,142.04,142.02,3.57142061]
[1723717032739,3.57041163,142.04,142.02,0.05152061]
[1723717034150,0.05091163,142.04,142.02,3.57142061]
[1723717039060,0.05091163,142.04,142.02,0.05152061]
[1723717039061,3.57041163,142.04,142.02,0.05152061]
[1723717040757,3.5197,142.03,142.02,0.05152061]
[1723717042561,0.05091163,142.04,142.02,13.57152061]
[1723717042756,0.05091163,142.04,142.03,13.52]
[1723717043957,0.05091163,142.04,142.03,17.0397]
[1723717045952,0.05091163,142.04,142.03,3.5197]
[1723717047961,4.28,142.13,142.02,33.83152061]
[1723717048156,1.3671,142.14,142.08,33.78]
[1723717048363,3.5179,142.11,142.08,33.78]
[1723717048864,1.3671,142.14,142.08,33.78]
[1723717048865,3.5176,142.12,142.08,33.78]
[1723717049252,0.04557889,142.11,142.08,33.82783527]
[1723717049759,0.04557889,142.11,142.08,37.34613527]
[1723717049954,3.56337889,142.11,142.08,37.34613527]
[1723717050161,0.04557889,142.11,142.08,0.04783527]
[1723717050664,3.5182,142.1,142.08,0.04783527]
[1723717051249,3.5183,142.09,142.08,0.04783527]
[1723717052056,3.5181,142.1,142.08,0.04783527]
[1723717057565,3.5182,142.09,142.08,0.04783527]
[1723717058769,0.04557889,142.11,142.08,33.82783527]
[1723717059372,3.5181,142.1,142.08,33.82783527]
[1723717061067,3.5182,142.09,142.08,33.82783527]
[1723717063172,3.5182,142.09,142.08,0.04783527]
[1723717064470,28.47673029,142.1,142.0,33.78]
[1723717064671,1.3036,142.08,142.0,37.3003]
[1723717064867,1.3036,142.08,142.0,33.78]
[1723717065473,3.5199,142.03,142.0,33.78]
[1723717065869,3.5199,142.03,142.0,33.82716676]
[1723717066573,0.05058284,142.05,142.0,33.82716676]
[1723717066875,0.05058284,142.05,142.0,0.04716676]
[1723717067670,3.5202,142.01,142.0,0.04716676]
[1723717070174,0.04925111,142.02,141.93,33.78]
[1723717070175,3.5217,141.95,141.93,33.78]
[1723717070373,6.13054502,142.02,141.93,33.78]
[1723717070583,39.86129391,142.02,141.93,33.78]
[1723717070781,39.86129391,142.02,141.91,1.325]
[1723717070782,3.5221,141.94,141.91,35.105]
[1723717071081,4.3,141.98,141.91,33.78]
[1723717071277,3.5224,141.93,141.91,33.78]
[1723717072276,3.5224,141.93,141.91,33.82748462]
[1723717073772,3.5225,141.92,141.91,33.82748462]
[1723717076082,3.57497528,141.93,141.91,33.82748462]
[1723717076384,0.05267528,141.93,141.91,33.82748462]
[1723717077784,3.5225,141.92,141.91,33.82748462]
[1723717078686,3.5225,141.92,141.91,0.04748462]
[1723717099490,0.05267528,141.93,141.91,13.58748462]
[1723717099697,0.05267528,141.93,141.92,13.54]
[1723717101895,3.5224,141.92,141.91,0.04748462]
[1723717105107,3.5241,141.86,141.83,1.2384]
[1723717105696,3.5241,141.86,141.82,41.6148]
[1723717106197,3.57477172,141.85,141.83,0.04908351]
[1723717106402,3.5242,141.85,141.82,41.6148]
[1723717106596,3.57023651,141.85,141.83,0.04610114]
[1723717107205,3.5244,141.84,141.83,0.04610114]
[1723717108899,0.04603651,141.85,141.83,0.04610114]
[1723717109104,0.04603651,141.85,141.84,33.81]
[1723717109400,4.28,141.9,141.84,37.3342]
[1723717109706,4.28,141.9,141.84,33.81]
[1723717110099,3.5238,141.87,141.84,37.3344]
[1723717110404,0.04497898,141.87,141.84,37.3344]
[1723717111801,3.524,141.86,141.84,37.3344]
[1723717112002,0.04497898,141.87,141.84,37.3344]
[1723717112397,3.56877898,141.87,141.84,37.3344]
[1723717113597,0.04497898,141.87,141.85,3.5241]
[1723717114007,0.04497898,141.87,141.84,35.1235]
[1723717114203,0.04497898,141.87,141.85,3.524]
[1723717114403,0.04497898,141.87,141.84,35.1235]
[1723717114611,0.04497898,141.87,141.85,3.524]
[1723717115103,4.28,141.93,141.86,3.5238]
[1723717115304,7.04,142.0,141.86,33.81]
[1723717115305,3.5228,141.91,141.86,33.81]
[1723717115806,3.5228,141.91,141.88,3.5233]
[1723717116406,3.56747582,141.91,141.88,3.56847977]
[1723717117608,0.04467582,141.91,141.88,0.04517977]
[1723717117810,0.04467582,141.91,141.88,33.85517977]
[1723717118307,3.5221,141.94,141.91,3.5225]
[1723717119308,3.57598033,141.94,141.91,3.56787123]
[1723717120014,3.5222,141.93,141.91,0.04537123]
[1723717120316,0.05388033,141.94,141.91,0.04537123]
[1723717120508,3.5224,141.93,141.91,0.04537123]
[1723717123821,3.57588033,141.94,141.91,3.56797123]
[1723717124119,0.05388033,141.94,141.92,13.53]
[1723717125915,3.57578033,141.94,141.91,0.04537123]
[1723717126310,3.57578033,141.94,141.91,3.56797123]
[1723717127713,0.05388033,141.94,141.91,3.56797123]
[1723717128123,3.57598033,141.94,141.91,3.56797123]
[1723717129317,3.5222,141.93,141.91,3.56797123]
[1723717129511,0.05388033,141.94,141.92,33.83]
[1723717130713,0.05388033,141.94,141.93,3.5222]
[1723717131318,0.05388033,141.94,141.92,3.5223]
[1723717131613,0.05388033,141.94,141.91,0.04537123]
[1723717132017,3.5224,141.92,141.91,0.04537123]
[1723717135420,3.5223,141.93,141.91,0.04537123]
[1723717135618,0.05388033,141.94,141.91,0.04537123]
[1723717135820,3.57598033,141.94,141.91,0.04537123]
[1723717136022,3.57598033,141.94,141.91,3.56797123]
[1723717136624,0.05388033,141.94,141.92,3.5224]
[1723717137329,0.05388033,141.94,141.91,37.39787123]
[1723717137925,0.05388033,141.94,141.92,3.5223]
[1723717138120,0.05388033,141.94,141.92,33.83]
[1723717138322,0.05388033,141.94,141.93,3.5221]
[1723717142236,3.5208,141.99,141.92,38.11]
[1723717142423,3.5208,141.99,141.94,33.83]
[1723717142623,1.3038,142.0,141.94,33.83]
[1723717142823,69.0338445,142.03,141.96,33.83]
[1723717143024,69.0338445,142.03,141.97,4.28]
[1723717143324,3.5201,142.02,141.99,3.5205]
[1723717143525,69.0338445,142.03,141.98,37.39946125]
[1723717143929,0.05237761,142.01,142.0,37.3503]
[1723717144624,3.5195,142.04,142.01,3.5201]
[1723717144828,0.04678471,142.02,142.01,3.5201]
[1723717145427,0.04678471,142.02,141.99,4.33181558]
[1723717146124,3.56678471,142.02,141.99,7.85231558]
[1723717146528,0.04678471,142.02,141.99,0.05181558]
[1723717146728,3.5204,142.01,141.99,0.05181558]
[1723717147623,0.04678471,142.02,141.99,0.05181558]
[1723717147624,3.5204,142.0,141.99,0.05181558]
[1723717153240,3.5217,141.95,141.92,33.83]
[1723717153539,33.83,142.01,141.92,38.11]
[1723717154331,3.56646316,141.98,141.95,0.04807163]
[1723717155541,3.5212,141.97,141.95,0.04807163]
[1723717155935,3.56636316,141.98,141.95,0.04807163]
[1723717156344,0.04536316,141.98,141.95,0.04807163]
[1723717156639,3.5214,141.96,141.95,0.04807163]
[1723717157637,0.04536316,141.98,141.96,3.5213]
[1723717157843,0.04536316,141.98,141.95,0.04807163]
[1723717158844,3.5212,141.97,141.95,0.04807163]
[1723717160839,3.5214,141.96,141.95,0.04807163]
[1723717170339,3.5212,141.97,141.95,0.04807163]
[1723717170740,1.30316316,141.98,141.95,0.04807163]
[1723717171037,3.5212,141.97,141.95,0.04807163]
[1723717174846,3.56636316,141.98,141.95,3.56967163]
[1723717175237,0.04536316,141.98,141.95,13.57807163]
[1723717175639,0.04536316,141.98,141.95,3.56957163]
[1723717176442,3.5212,141.97,141.95,0.04807163]
[1723717177150,3.5214,141.96,141.95,0.04807163]
[1723717192351,0.04536316,141.98,141.95,0.04807163]
[1723717193651,3.5213,141.97,141.95,0.04807163]
[1723717194152,0.04536316,141.98,141.95,0.04807163]
[1723717194760,3.5214,141.96,141.95,0.04807163]
[1723717196355,0.04536316,141.98,141.95,0.04807163]
[1723717197855,3.56646316,141.98,141.95,3.56957163]
[1723717200257,0.04536316,141.98,141.96,3.5213]
[1723717200563,0.04536316,141.98,141.97,13.53]
[1723717200761,3.52,142.02,141.99,3.5204]
[1723717201061,61.9930783,142.04,142.0,13.53]
[1723717201560,3.5199,142.02,142.0,13.53]
[1723717201857,0.05155219,142.02,142.0,13.58395185]
[1723717202059,0.05155219,142.02,142.01,13.53]
[1723717202460,0.05155219,142.02,142.01,17.0501]
[1723717203261,0.05155219,142.02,142.01,3.5201]
[1723717203462,0.05155219,142.02,142.01,17.0501]
[1723717212065,0.05155219,142.02,142.01,21.3301]
[1723717213363,0.05155219,142.02,142.01,4.28]
[1723717213961,0.05155219,142.02,142.01,7.8001]
[1723717223566,0.05155219,142.02,142.01,3.5201]
[1723717223770,0.05155219,142.02,142.01,7.8001]
[1723717234773,0.05155219,142.02,142.0,3.57405185]
[1723717235169,0.05155219,142.02,142.0,0.05395185]
[1723717236671,0.05155219,142.02,142.01,3.5199]
[1723717239367,0.05155219,142.02,142.01,17.0499]
[1723717244277,0.05155219,142.02,142.01,13.53]
[1723717244578,0.05155219,142.02,141.8,42.92316311]
[1723717244579,13.58155219,142.02,141.87,7.0466]
[1723717244780,16.0764,142.01,141.94,13.53]
[1723717244977,3.5207,141.98,141.94,13.53]
[1723717245174,13.53,141.98,141.89,1.3019]
[1723717245379,3.5219,141.93,141.9,17.0525]
[1723717245581,13.53,141.95,141.88,4.28]
[1723717245783,13.53,141.94,141.9,0.0512587]
[1723717246086,13.53,141.92,141.85,4.28]
[1723717246290,13.53,141.92,141.86,13.53]
[1723717246491,3.523,141.89,141.86,13.53]
[1723717246788,13.53,141.92,141.86,13.53]
[1723717247595,3.5232,141.89,141.88,0.05370616]
[1723717248695,3.5234,141.88,141.86,13.53]
[1723717249403,3.5235,141.87,141.86,13.53]
[1723717251291,3.5233,141.88,141.86,13.53]
[1723717252903,1.26,141.89,141.86,13.53]
[1723717253704,3.5234,141.87,141.86,13.53]
[1723717253897,3.5234,141.87,141.85,0.04451641]
[1723717258199,4.8209,141.88,141.85,17.09831641]
[1723717258506,1.2976,141.88,141.85,13.57451641]
[1723717258698,3.5234,141.87,141.85,13.57451641]
[1723717259310,0.04944269,141.9,141.85,67.69451641]
[1723717259502,0.04944269,141.9,141.89,13.53]
[1723717260297,0.04944269,141.9,141.89,17.0529]
[1723717260705,0.04944269,141.9,141.89,13.53]
[1723717261301,0.04944269,141.9,141.89,17.053]
[1723717262410,0.04944269,141.9,141.89,13.53]
[1723717263806,0.04944269,141.9,141.89,17.053]
[1723717264015,0.04944269,141.9,141.89,20.59271224]
[1723717265206,0.04944269,141.9,141.89,17.06971224]
[1723717265514,0.04944269,141.9,141.89,13.53]
[1723717266016,0.04944269,141.9,141.89,17.053]
[1723717268216,0.04944269,141.9,141.89,13.53]
[1723717271313,0.04944269,141.9,141.88,3.57307245]
[1723717273312,0.04944269,141.9,141.89,17.053]
[1723717278118,0.04944269,141.9,141.89,13.53]
[1723717280613,3.57214269,141.9,141.88,0.04987245]
[1723717282323,3.57214269,141.9,141.88,3.57297245]
[1723717282715,0.04944269,141.9,141.88,3.57297245]
[1723717286428,0.04944269,141.9,141.88,0.04987245]
[1723717286725,13.53,141.89,141.78,2.4934]
[1723717286927,3.5241,141.85,141.82,3.5245]
[1723717287129,3.5241,141.85,141.82,7.01231019]
[1723717287923,3.5241,141.85,141.82,7.05747861]
[1723717288120,3.57425694,141.85,141.82,7.05747861]
[1723717288523,3.57425694,141.85,141.83,3.5244]
[1723717289638,3.57425694,141.85,141.82,3.56956842]
[1723717290527,3.5241,141.84,141.82,0.04516842]
[1723717292535,3.5243,141.83,141.82,0.04516842]
[1723717293235,3.5249,141.81,141.77,13.53]
[1723717293638,19.73680293,141.84,141.77,13.53]
[1723717293826,16.2031,141.84,141.77,13.53]
[1723717294227,3.5249,141.81,141.77,13.53]
[1723717294627,3.5249,141.81,141.79,0.05144085]
[1723717295135,3.57080718,141.82,141.79,13.58144085]
[1723717295329,0.04610718,141.82,141.8,3.525]
[1723717305655,3.57070718,141.82,141.79,17.10654085]
[1723717305955,3.57070718,141.82,141.79,13.58144085]
[1723717307755,3.57070718,141.82,141.8,3.525]
[1723717310257,0.04610718,141.82,141.8,17.055]
[1723717310653,0.04610718,141.82,141.79,13.58144085]
[1723717310854,3.5249,141.8,141.79,0.05144085]
[1723717315755,3.5248,141.81,141.79,13.58144085]
[1723717315955,3.5248,141.81,141.79,17.10664085]
[1723717316449,3.57070718,141.82,141.79,17.10664085]
[1723717316653,0.04610718,141.82,141.81,13.53]
[1723717317957,0.04610718,141.82,141.81,17.0547]
[1723717320063,0.04610718,141.82,141.81,3.5247]
[1723717325564,3.57060718,141.82,141.8,3.5248]
[1723717327471,0.04610718,141.82,141.79,13.58144085]
[1723717327765,0.04610718,141.82,141.8,13.53]
[1723717328875,0.04610718,141.82,141.81,3.5247]
[1723717329373,0.04610718,141.82,141.8,13.53]
[1723717329374,67.5441438,141.9,141.86,3.5233]
[1723717329674,3.5231,141.88,141.85,13.53]
[1723717329862,3.5231,141.88,141.85,17.0536]
[1723717330062,13.53,141.89,141.83,13.53]
[1723717330267,81.0741438,141.9,141.83,13.53]
[1723717330474,67.5441438,141.9,141.83,13.53]
[1723717330667,0.05330875,141.87,141.85,0.05079882]
[1723717330868,0.05330875,141.87,141.85,3.57439882]
[1723717331369,239.53,141.99,141.86,17.81]
[1723717331571,2.6024,141.98,141.86,5.6267]
[1723717331879,1.3061,141.98,141.96,13.53]
[1723717332073,1.3061,141.98,141.92,13.53]
[1723717332370,1.3061,141.98,141.92,17.81]
[1723717332569,0.05129766,141.96,141.94,13.57920946]
[1723717332963,0.05129766,141.96,141.94,17.10050946]
[1723717333166,0.05129766,141.96,141.95,13.53]
[1723717333567,0.05129766,141.96,141.95,17.0512]
[1723717334365,1.3234,142.02,141.95,13.53]
[1723717334571,1.3234,142.02,141.98,13.53]
[1723717334875,3.5201,142.0,141.98,13.53]
[1723717335671,3.57059509,142.0,141.98,13.57743703]
[1723717338481,3.5202,141.99,141.98,0.04743703]
[1723717343178,3.5215,141.95,141.89,1.2799]
[1723717343379,3.5215,141.95,141.91,13.53]
[1723717343772,3.5211,141.96,141.93,13.53]
[1723717344175,7.049,142.06,141.93,13.53]
[1723717344176,226.0,142.08,141.94,13.53]
[1723717344372,0.05056251,141.96,141.94,6.8266]
[1723717344573,2.6123,142.07,141.95,68.9048]
[1723717344879,2.6123,142.07,142.03,13.53]
[1723717345469,2.6123,142.07,142.01,13.53]
[1723717345673,0.05267015,142.06,142.04,0.05150863]
[1723717346175,3.5187,142.05,142.04,0.05150863]
[1723717366198,3.5198,142.01,141.98,4.28]
[1723717366398,0.05267015,142.06,141.95,1.2548]
[1723717366589,39.87787035,142.07,141.95,39.3148]
[1723717366590,38.06,142.05,141.95,39.3148]
[1723717366793,4.28,142.05,141.97,33.78]
[1723717366992,4.28,142.05,141.98,3.5205]
[1723717367810,0.05352731,142.03,142.0,0.04771033]
[1723717368701,3.5199,142.01,142.0,0.04771033]
[1723717387127,3.5196,142.02,142.0,13.56771033]
[1723717387324,0.05352731,142.03,142.0,13.56771033]
[1723717387718,3.57292731,142.03,142.0,17.08751033]
[1723717388722,3.5195,142.02,142.0,13.56771033]
[1723717390025,3.5195,142.02,142.0,6.51771033]
[1723717391020,3.5195,142.02,141.99,3.5201]
[1723717391220,3.5195,142.02,142.0,0.04740824]
[1723717393322,0.05352731,142.03,142.0,0.04740824]
[1723717393323,3.5197,142.01,142.0,0.04740824]
[1723717402434,7.7997,142.01,142.0,0.04740824]
[1723717402835,58.36,142.01,141.9,3.5223]
[1723717403036,13.52,141.97,141.9,17.0423]
[1723717403227,4.28,141.96,141.9,17.0423]
[1723717403925,0.0504797,141.94,141.92,0.04558865]
[1723717404728,3.5217,141.93,141.92,0.04558865]
[1723717404931,0.0504797,141.94,141.92,13.56558865]
[1723717405236,3.5206,141.98,141.93,17.00433293]
[1723717405436,3.5206,141.98,141.96,13.52]
[1723717406030,3.5207,141.97,141.96,13.52]
[1723717407838,3.56768909,141.98,141.96,13.52]
[1723717408636,0.04718909,141.98,141.96,13.52]
[1723717408833,0.04718909,141.98,141.97,13.52]
[1723717409234,0.04718909,141.98,141.97,17.0407]
[1723717410928,0.04718909,141.98,141.96,3.5208]
[1723717411135,0.04718909,141.98,141.97,13.52]
[1723717416147,0.04718909,141.98,141.97,17.0407]
[1723717419139,0.04718909,141.98,141.97,13.52]
[1723717420250,3.521,141.96,141.95,0.04622412]
[1723717421242,17.041,141.96,141.95,0.04622412]
[1723717424654,3.521,141.96,141.95,0.04622412]
[1723717428054,3.5208,141.97,141.95,0.04622412]
[1723717428950,3.521,141.96,141.95,0.04622412]
[1723717434357,3.56778909,141.98,141.95,0.04622412]
[1723717434651,0.04718909,141.98,141.95,13.56622412]
[1723717435049,3.56778909,141.98,141.95,13.56622412]
[1723717435250,0.04718909,141.98,141.95,0.04622412]
[1723717436357,3.5209,141.97,141.95,0.04622412]
[1723717438162,3.521,141.96,141.95,0.04622412]
[1723717439057,17.041,141.96,141.95,0.04622412]
[1723717439363,21.321,141.96,141.95,0.04622412]
[1723717439755,21.321,141.96,141.85,16.99963388]
[1723717439962,13.52,141.92,141.86,3.5234]
[1723717440463,3.5226,141.9,141.86,3.5234]
[1723717440662,17.8,141.92,141.85,7.00323388]
[1723717440862,3.5229,141.88,141.87,0.05224499]
[1723717442165,3.5229,141.88,141.78,2.6269]
[1723717442166,3.5242,141.83,141.79,33.82]
[1723717442358,3.5242,141.83,141.79,40.81370272]
[1723717443454,0.05058897,141.82,141.8,0.05254833]
[1723717443964,3.57508897,141.82,141.8,0.05254833]
[1723717445566,3.5247,141.81,141.8,0.05254833]
[1723717448360,0.05058897,141.82,141.8,0.05254833]
[1723717448760,0.05058897,141.82,141.8,3.57744833]
[1723717456163,0.05058897,141.82,141.8,0.05254833]
[1723717457370,3.5247,141.81,141.8,0.05254833]
[1723717459258,3.57528897,141.82,141.8,0.05254833]
[1723717459464,0.05058897,141.82,141.8,0.05254833]
[1723717460465,3.57518897,141.82,141.8,0.05254833]
[1723717463974,3.5247,141.81,141.8,0.05254833]
[1723717468477,3.57508897,141.82,141.8,0.05254833]
[1723717468779,0.05058897,141.82,141.8,0.05254833]
[1723717469474,3.5247,141.81,141.8,0.05254833]
[1723717477892,0.05058897,141.82,141.8,13.59254833]
[1723717478088,0.05058897,141.82,141.81,17.0647]
[1723717478895,0.05058897,141.82,141.81,3.5247]
[1723717479098,0.05058897,141.82,141.8,21.39734833]
[1723717479592,0.05058897,141.82,141.8,17.87254833]
[1723717480401,3.57518897,141.82,141.8,17.87254833]
[1723717480696,3.57518897,141.82,141.8,21.39744833]
[1723717480899,0.05058897,141.82,141.8,21.39744833]
[1723717481399,0.05058897,141.82,141.8,0.05254833]
[1723717481598,3.57518897,141.82,141.8,0.05254833]
[1723717482496,17.0647,141.81,141.8,0.05254833]
[1723717483397,3.5247,141.81,141.8,0.05254833]
[1723717492601,17.0647,141.81,141.8,0.05254833]
[1723717493903,3.5258,141.77,141.74,3.5263]
[1723717494105,3.5258,141.77,141.74,17.0663]
[1723717494692,3.5258,141.77,141.74,3.5263]
[1723717494898,3.526,141.76,141.74,17.0663]
[1723717495296,0.04907452,141.77,141.74,0.04785723]
[1723717495801,13.54,141.75,141.71,4.28]
[1723717496000,0.04907452,141.77,141.71,4.28]
[1723717496001,17.82,141.74,141.71,4.28]
[1723717496203,17.82,141.74,141.68,13.54]
[1723717496503,3.5273,141.71,141.68,13.54]
[1723717496902,3.5273,141.71,141.68,17.0679]
[1723717497296,3.5275,141.7,141.67,3.528]
[1723717497508,3.5275,141.7,141.67,17.068]
[1723717497705,3.5275,141.7,141.67,13.54]
[1723717497903,3.5278,141.69,141.67,13.54]
[1723717498104,3.5278,141.69,141.66,3.5283]
[1723717498105,3.5278,141.69,141.66,17.0683]
[1723717501008,3.5276,141.7,141.67,3.5282]
[1723717501205,3.5276,141.7,141.67,17.0682]
[1723717501405,3.5276,141.7,141.67,13.54]
[1723717501604,0.05287171,141.71,141.69,13.54]
[1723717501907,0.05287171,141.71,141.7,13.54]
[1723717502105,0.05287171,141.71,141.65,57.65016086]
[1723717502413,0.05287171,141.71,141.69,13.54]
[1723717502711,0.05287171,141.71,141.69,17.0675]
[1723717505005,3.58007171,141.71,141.68,3.5279]
[1723717505205,0.05287171,141.71,141.68,3.5279]
[1723717505402,0.05287171,141.71,141.67,13.54]
[1723717505600,3.5273,141.71,141.68,13.54]
[1723717506009,0.04774518,141.7,141.68,13.54]
[1723717506208,0.04774518,141.7,141.69,3.5276]
[1723717507408,0.04774518,141.7,141.68,17.0678]
[1723717508514,0.04774518,141.7,141.69,3.5277]
[1723717511612,0.04774518,141.7,141.69,17.0677]
[1723717511818,233.0479,141.85,141.69,13.54]
[1723717512006,19.0659,141.8,141.74,13.54]
[1723717512406,3.5258,141.77,141.74,17.0663]
[1723717512617,1.2459,141.8,141.74,13.54]
[1723717512618,19.0659,141.8,141.74,13.54]
[1723717513114,3.57314995,141.78,141.76,0.04977837]
[1723717513713,0.04754995,141.78,141.76,0.04977837]
[1723717514314,0.04754995,141.78,141.76,13.58977837]
[1723717514721,0.04754995,141.78,141.76,17.11557837]
[1723717515816,0.04754995,141.78,141.77,3.5257]
[1723717517514,0.04754995,141.78,141.76,3.57557837]
[1723717518520,0.04754995,141.78,141.77,3.5257]
[1723717519219,0.04754995,141.78,141.76,3.57557837]
[1723717520821,0.04754995,141.78,141.77,3.5257]
[1723717524722,0.04754995,141.78,141.76,3.57567837]
[1723717529829,0.04754995,141.78,141.76,0.04977837]
[1723717530022,3.57314995,141.78,141.76,0.04977837]
[1723717530228,0.04754995,141.78,141.76,0.04977837]
[1723717531331,0.04754995,141.78,141.76,3.57557837]
[1723717533040,0.04754995,141.78,141.77,3.5257]
[1723717542538,0.04754995,141.78,141.76,3.57537837]
[1723717552553,0.04754995,141.78,141.77,3.5255]
[1723717554550,72.00182658,141.84,141.81,3.5244]
[1723717554756,3.5239,141.84,141.81,3.5244]
[1723717555457,3.5239,141.84,141.8,17.08235409]
[1723717555458,3.5237,141.85,141.82,3.5242]
[1723717555665,17.82,141.88,141.81,13.54]
[1723717556163,17.82,141.88,141.83,3.5238]
[1723717556359,0.05240839,141.85,141.83,3.5238]
[1723717556562,0.05240839,141.85,141.82,0.04731474]
[1723717556762,0.05240839,141.85,141.82,13.58731474]
[1723717557151,0.05240839,141.85,141.84,3.5238]
[1723717557359,0.05240839,141.85,141.84,17.0638]
[1723717558963,0.05240839,141.85,141.84,3.5238]
[1723717562664,0.05240839,141.85,141.84,17.0638]
[1723717562864,3.5224,141.9,141.84,13.54]
[1723717563468,3.5224,141.9,141.87,3.523]
[1723717563674,13.54,141.88,141.82,0.04731474]
[1723717563875,13.54,141.88,141.81,21.38180071]
[1723717564172,3.57591389,141.86,141.84,0.05416855]
[1723717564568,0.05261389,141.86,141.84,0.05416855]
[1723717565562,3.5235,141.85,141.84,0.05416855]
[1723717565967,0.05261389,141.86,141.84,0.05416855]
[1723717567068,3.57601389,141.86,141.84,0.05416855]
[1723717568968,3.5235,141.85,141.84,0.05416855]
[1723717571177,3.57601389,141.86,141.84,0.05416855]
[1723717572374,0.05261389,141.86,141.84,3.57796855]
[1723717573578,0.05261389,141.86,141.85,3.5235]
[1723717573975,0.05261389,141.86,141.85,17.0635]
[1723717574371,0.05261389,141.86,141.85,21.3435]
[1723717575381,0.05261389,141.86,141.84,3.57776855]
[1723717575574,0.05261389,141.86,141.84,0.05416855]
[1723717576075,0.05261389,141.86,141.85,3.5235]
[1723717576384,0.05261389,141.86,141.85,17.0635]
[1723717577281,0.05261389,141.86,141.85,3.5235]
[1723717580679,0.05261389,141.86,141.84,3.57786855]
[1723717581477,3.57591389,141.86,141.84,0.05416855]
[1723717582180,3.57591389,141.86,141.84,3.57796855]
[1723717583187,3.57591389,141.86,141.84,0.05416855]
[1723717583478,3.5235,141.85,141.84,0.05416855]
[1723717586389,0.05261389,141.86,141.84,0.05416855]
[1723717586390,3.57601389,141.86,141.84,0.05416855]
[1723717586589,0.05261389,141.86,141.84,0.05416855]
[1723717586979,0.05261389,141.86,141.84,3.57776855]
[1723717587182,0.05261389,141.86,141.84,0.05416855]
[1723717587583,3.5235,141.85,141.84,0.05416855]
[1723717589089,3.57611389,141.86,141.84,0.05416855]
[1723717592789,3.5235,141.85,141.84,0.05416855]
[1723717595093,3.5241,141.83,141.8,7.8046]
[1723717596092,3.5241,141.83,141.8,7.85146675]
[1723717596300,3.57250124,141.83,141.8,7.85146675]
[1723717596993,0.04840124,141.83,141.81,17.0645]
[1723717597692,0.04840124,141.83,141.82,3.5243]
[1723717598198,0.04840124,141.83,141.81,13.54]
[1723717599696,0.04840124,141.83,141.81,17.0644]
[1723717600199,0.04840124,141.83,141.82,3.5243]
[1723717600592,0.04840124,141.83,141.81,13.54]